Workbook

Sheet savjeti
A1: SAVJETI PREDLOŽAKA
A2: Postoji li jednostavan način prebacivanja između lista sažetka Trendovi troškova i pojedinosti mjesečnih troškova?
A3: Da biste brzo prešli na troškove određenog mjeseca, kliknite povezanu vezu navigacije iznad grafikona, kao što je navigacijska veza Sij u ćeliji B2. Zatim se vratite na radni list Trendovi troškova pa kliknite vezu navigacije Sažetak u ćeliji D1.
A4: Da biste se vratili na ovaj radni list sa savjetima, na radnom listu sažetka odaberite ćeliju N2. U svakom radnom listu mjeseca možete odabrati ćeliju E1.
A5: Kako dodati novu vrstu troška u sažetak troškova ili nove mjesečne troškove?
A6: Sažetak troškova ispod grafikona i pojedinosti troškova za svaki mjesec tablice su programa Excel. Da biste dodali nove retke u bilo koju tablicu programa Excel, učinite nešto do sljedećeg:
A7: =ROW(A1)&". Ako tablica ne sadrži redak Ukupno, započnite upisivati ispod tablice i automatski će se proširiti kada pritisnete tipku Enter ili tabulator." -> 1. Ako tablica ne sadrži redak Ukupno, započnite upisivati ispod tablice i automatski će se proširiti kada pritisnete tipku Enter ili tabulator.
A8: =ROW(A2)&". Smjestite pokazivač ćelija u zadnju ćeliju iznad retka zbroja, npr. ukupnog zbroja zadnjeg troška, a zatim pritisnite tabulator." -> 2. Smjestite pokazivač ćelija u zadnju ćeliju iznad retka zbroja, npr. ukupnog zbroja zadnjeg troška, a zatim pritisnite tabulator.
A9: =ROW(A3)&". Desnom tipkom miša kliknite u tablici i na skočnom izborniku pokažite na Umetanje, a zatim kliknite Reci tablice iznad ili Reci tablice ispod." -> 3. Desnom tipkom miša kliknite u tablici i na skočnom izborniku pokažite na Umetanje, a zatim kliknite Reci tablice iznad ili Reci tablice ispod.
A10: =ROW(A4)&". U donjem desnom kutu tablice postavite pokazivač na ručicu za promjenu veličine tablice i povucite prema dolje da biste povećali broj redaka u tablici." -> 4. U donjem desnom kutu tablice postavite pokazivač na ručicu za promjenu veličine tablice i povucite prema dolje da biste povećali broj redaka u tablici.
A11: U stupac Troškovi u radni list sažetka u tablicu SažetakTroškova unesite trošak.
A12: Dodajte iznos troška za svaku vrstu troška u radni list mjeseca na koji se trošak odnosi.
A13: na primjer: "Trošak 1" pojavljuje se u mjesecima od siječnja do lipnja i u prosincu.
A14: =ROW(A1)&". Trošak 1 unesen je na radni list sažetka u odjeljak Trošak u tablicu SažetakTroškova (kao naslov za vrstu troška)" -> 1. Trošak 1 unesen je na radni list sažetka u odjeljak Trošak u tablicu SažetakTroškova (kao naslov za vrstu troška)
A15: =ROW(A2)&". Za svaki mjesec u kojem se trošak pojavljuje unesite iznos troška na odgovarajući radni list mjeseca." -> 2. Za svaki mjesec u kojem se trošak pojavljuje unesite iznos troška na odgovarajući radni list mjeseca.
A16: =ROW(A3)&". Vrsta troška s radnog lista tablice SažetakTroškova stvara popis kategorija za stupac Kategorija na svakom radnom listu mjeseca." -> 3. Vrsta troška s radnog lista tablice SažetakTroškova stvara popis kategorija za stupac Kategorija na svakom radnom listu mjeseca.
A17: =ROW(A4)&". Pomoću popisa kategorija u stupcu Kategorija odaberite odgovarajuću vrstu troška za uneseni iznos troška" -> 4. Pomoću popisa kategorija u stupcu Kategorija odaberite odgovarajuću vrstu troška za uneseni iznos troška
A18: =ROW(A5)&". Da biste dodali nove troškove za bilo koji mjesec, dodajte novi redak u tablicu SažetakTroškova na radni list sažetka, a zatim unesite odgovarajuće detalje na radni list mjeseca na koji se odnosi." -> 5. Da biste dodali nove troškove za bilo koji mjesec, dodajte novi redak u tablicu SažetakTroškova na radni list sažetka, a zatim unesite odgovarajuće detalje na radni list mjeseca na koji se odnosi.

Sheet sažetak
A1: TRENDOVI TROŠKOVA
B2: Sij | C2: Velj | D2: Ožu | E2: Tra | F2: Svi | G2: Lip | H2: Srp | I2: Kol | J2: Ruj | K2: Lis | L2: Stu | M2: Pro | N2: Savjeti
A4: Troškovi | B4: Sij | C4: Velj | D4: Ožu | E4: Tra | F4: Svi | G4: Lip | H4: Srp | I4: Kol | J4: Ruj | K4: Lis | L4: Stu | M4: Pro | N4: Zbroj | O4: Trend
A5: Trošak 1 | B5: =SUMIFS(TroSij[Iznos],TroSij[Kategorija],SažetakTroškova[Troškovi]) -> 33.00 | C5: =SUMIFS(TroVelj[Iznos],TroVelj[Kategorija],SažetakTroškova[Troškovi]) -> 375.00 | D5: =SUMIFS(TroOžu[Iznos],TroOžu[Kategorija],SažetakTroškova[Troškovi]) -> 33.00 | E5: =SUMIFS(TroTra[Iznos],TroTra[Kategorija],SažetakTroškova[Troškovi]) -> 45.00 | F5: =SUMIFS(TroSvi[Iznos],TroSvi[Kategorija],SažetakTroškova[Troškovi]) -> 375.00 | G5: =SUMIFS(TroLip[Iznos],TroLip[Kategorija],SažetakTroškova[Troškovi]) -> 201.00 | H5: =SUMIFS(TroSrp[Iznos],TroSrp[Kategorija],SažetakTroškova[Troškovi]) -> 0.00 | I5: =SUMIFS(TroKol[Iznos],TroKol[Kategorija],SažetakTroškova[Troškovi]) -> 0.00 | J5: =SUMIFS(TroRuj[Iznos],TroRuj[Kategorija],SažetakTroškova[Troškovi]) -> 0.00 | K5: =SUMIFS(TroLis[Iznos],TroLis[Kategorija],SažetakTroškova[Troškovi]) -> 0.00 | L5: =SUMIFS(TroStu[Iznos],TroStu[Kategorija],SažetakTroškova[Troškovi]) -> 0.00 | M5: =SUMIFS(TroPro[Iznos],TroPro[Kategorija],SažetakTroškova[Troškovi]) -> 201.00 | N5: =SUM(SažetakTroškova[[#This Row],[Sij]:[Pro]]) -> 1,263.00
A6: Trošak 2 | B6: =SUMIFS(TroSij[Iznos],TroSij[Kategorija],SažetakTroškova[Troškovi]) -> 238.00 | C6: =SUMIFS(TroVelj[Iznos],TroVelj[Kategorija],SažetakTroškova[Troškovi]) -> 238.00 | D6: =SUMIFS(TroOžu[Iznos],TroOžu[Kategorija],SažetakTroškova[Troškovi]) -> 238.00 | E6: =SUMIFS(TroTra[Iznos],TroTra[Kategorija],SažetakTroškova[Troškovi]) -> 123.00 | F6: =SUMIFS(TroSvi[Iznos],TroSvi[Kategorija],SažetakTroškova[Troškovi]) -> 111.00 | G6: =SUMIFS(TroLip[Iznos],TroLip[Kategorija],SažetakTroškova[Troškovi]) -> 98.00 | H6: =SUMIFS(TroSrp[Iznos],TroSrp[Kategorija],SažetakTroškova[Troškovi]) -> 0.00 | I6: =SUMIFS(TroKol[Iznos],TroKol[Kategorija],SažetakTroškova[Troškovi]) -> 0.00 | J6: =SUMIFS(TroRuj[Iznos],TroRuj[Kategorija],SažetakTroškova[Troškovi]) -> 0.00 | K6: =SUMIFS(TroLis[Iznos],TroLis[Kategorija],SažetakTroškova[Troškovi]) -> 0.00 | L6: =SUMIFS(TroStu[Iznos],TroStu[Kategorija],SažetakTroškova[Troškovi]) -> 0.00 | M6: =SUMIFS(TroPro[Iznos],TroPro[Kategorija],SažetakTroškova[Troškovi]) -> 440.00 | N6: =SUM(SažetakTroškova[[#This Row],[Sij]:[Pro]]) -> 1,486.00
A7: Trošak 3 | B7: =SUMIFS(TroSij[Iznos],TroSij[Kategorija],SažetakTroškova[Troškovi]) -> 110.00 | C7: =SUMIFS(TroVelj[Iznos],TroVelj[Kategorija],SažetakTroškova[Troškovi]) -> 110.00 | D7: =SUMIFS(TroOžu[Iznos],TroOžu[Kategorija],SažetakTroškova[Troškovi]) -> 110.00 | E7: =SUMIFS(TroTra[Iznos],TroTra[Kategorija],SažetakTroškova[Troškovi]) -> 125.00 | F7: =SUMIFS(TroSvi[Iznos],TroSvi[Kategorija],SažetakTroškova[Troškovi]) -> 333.00 | G7: =SUMIFS(TroLip[Iznos],TroLip[Kategorija],SažetakTroškova[Troškovi]) -> 122.00 | H7: =SUMIFS(TroSrp[Iznos],TroSrp[Kategorija],SažetakTroškova[Troškovi]) -> 0.00 | I7: =SUMIFS(TroKol[Iznos],TroKol[Kategorija],SažetakTroškova[Troškovi]) -> 0.00 | J7: =SUMIFS(TroRuj[Iznos],TroRuj[Kategorija],SažetakTroškova[Troškovi]) -> 0.00 | K7: =SUMIFS(TroLis[Iznos],TroLis[Kategorija],SažetakTroškova[Troškovi]) -> 0.00 | L7: =SUMIFS(TroStu[Iznos],TroStu[Kategorija],SažetakTroškova[Troškovi]) -> 0.00 | M7: =SUMIFS(TroPro[Iznos],TroPro[Kategorija],SažetakTroškova[Troškovi]) -> 122.00 | N7: =SUM(SažetakTroškova[[#This Row],[Sij]:[Pro]]) -> 1,032.00
A8: Trošak 4 | B8: =SUMIFS(TroSij[Iznos],TroSij[Kategorija],SažetakTroškova[Troškovi]) -> 426.00 | C8: =SUMIFS(TroVelj[Iznos],TroVelj[Kategorija],SažetakTroškova[Troškovi]) -> 84.00 | D8: =SUMIFS(TroOžu[Iznos],TroOžu[Kategorija],SažetakTroškova[Troškovi]) -> 84.00 | E8: =SUMIFS(TroTra[Iznos],TroTra[Kategorija],SažetakTroškova[Troškovi]) -> 426.00 | F8: =SUMIFS(TroSvi[Iznos],TroSvi[Kategorija],SažetakTroškova[Troškovi]) -> 125.00 | G8: =SUMIFS(TroLip[Iznos],TroLip[Kategorija],SažetakTroškova[Troškovi]) -> 187.00 | H8: =SUMIFS(TroSrp[Iznos],TroSrp[Kategorija],SažetakTroškova[Troškovi]) -> 0.00 | I8: =SUMIFS(TroKol[Iznos],TroKol[Kategorija],SažetakTroškova[Troškovi]) -> 0.00 | J8: =SUMIFS(TroRuj[Iznos],TroRuj[Kategorija],SažetakTroškova[Troškovi]) -> 0.00 | K8: =SUMIFS(TroLis[Iznos],TroLis[Kategorija],SažetakTroškova[Troškovi]) -> 0.00 | L8: =SUMIFS(TroStu[Iznos],TroStu[Kategorija],SažetakTroškova[Troškovi]) -> 0.00 | M8: =SUMIFS(TroPro[Iznos],TroPro[Kategorija],SažetakTroškova[Troškovi]) -> 187.00 | N8: =SUM(SažetakTroškova[[#This Row],[Sij]:[Pro]]) -> 1,519.00
A9: Trošak 5 | B9: =SUMIFS(TroSij[Iznos],TroSij[Kategorija],SažetakTroškova[Troškovi]) -> 54.00 | C9: =SUMIFS(TroVelj[Iznos],TroVelj[Kategorija],SažetakTroškova[Troškovi]) -> 54.00 | D9: =SUMIFS(TroOžu[Iznos],TroOžu[Kategorija],SažetakTroškova[Troškovi]) -> 109.00 | E9: =SUMIFS(TroTra[Iznos],TroTra[Kategorija],SažetakTroškova[Troškovi]) -> 98.00 | F9: =SUMIFS(TroSvi[Iznos],TroSvi[Kategorija],SažetakTroškova[Troškovi]) -> 33.00 | G9: =SUMIFS(TroLip[Iznos],TroLip[Kategorija],SažetakTroškova[Troškovi]) -> 441.00 | H9: =SUMIFS(TroSrp[Iznos],TroSrp[Kategorija],SažetakTroškova[Troškovi]) -> 0.00 | I9: =SUMIFS(TroKol[Iznos],TroKol[Kategorija],SažetakTroškova[Troškovi]) -> 0.00 | J9: =SUMIFS(TroRuj[Iznos],TroRuj[Kategorija],SažetakTroškova[Troškovi]) -> 0.00 | K9: =SUMIFS(TroLis[Iznos],TroLis[Kategorija],SažetakTroškova[Troškovi]) -> 0.00 | L9: =SUMIFS(TroStu[Iznos],TroStu[Kategorija],SažetakTroškova[Troškovi]) -> 0.00 | M9: =SUMIFS(TroPro[Iznos],TroPro[Kategorija],SažetakTroškova[Troškovi]) -> 99.00 | N9: =SUM(SažetakTroškova[[#This Row],[Sij]:[Pro]]) -> 888.00
A10: Zbroj | B10: =SUBTOTAL(109,SažetakTroškova[Sij]) -> 861.00 | C10: =SUBTOTAL(109,SažetakTroškova[Velj]) -> 861.00 | D10: =SUBTOTAL(109,SažetakTroškova[Ožu]) -> 574.00 | E10: =SUBTOTAL(109,SažetakTroškova[Tra]) -> 817.00 | F10: =SUBTOTAL(109,SažetakTroškova[Svi]) -> 977.00 | G10: =SUBTOTAL(109,SažetakTroškova[Lip]) -> 1,049.00 | H10: =SUBTOTAL(109,SažetakTroškova[Srp]) -> 0.00 | I10: =SUBTOTAL(109,SažetakTroškova[Kol]) -> 0.00 | J10: =SUBTOTAL(109,SažetakTroškova[Ruj]) -> 0.00 | K10: =SUBTOTAL(109,SažetakTroškova[Lis]) -> 0.00 | L10: =SUBTOTAL(109,SažetakTroškova[Stu]) -> 0.00 | M10: =SUBTOTAL(109,SažetakTroškova[Pro]) -> 1,049.00 | N10: =SUBTOTAL(109,SažetakTroškova[Zbroj]) -> 6,188.00

Sheet sij
A1: TROŠKOVI U SIJEČNJU | D1: Sažetak | E1: Savjeti
A2: Datum | B2: Broj narudžbenice | C2: Iznos | D2: Kategorija | E2: Opis
A3: =DATE(YEAR(TODAY()),1,4) -> 2016-01-04 | B3: A-12345 | C3: 33.00 | D3: Trošak 1 | E3: Zalihe
A4: =DATE(YEAR(TODAY()),1,5) -> 2016-01-05 | B4: A-12346 | C4: 238.00 | D4: Trošak 2
C5: 342.00 | D5: Trošak 4
C6: 110.00 | D6: Trošak 3
C7: 84.00 | D7: Trošak 4
C8: 54.00 | D8: Trošak 5
A9: Zbroj | C9: =SUBTOTAL(109,TroSij[Iznos]) -> 861.00

Sheet velj
A1: TROŠKOVI U VELJAČI | D1: Sažetak | E1: Savjeti
A2: Datum | B2: Broj narudžbenice | C2: Iznos | D2: Kategorija | E2: Opis
A3: =DATE(YEAR(TODAY()),2,3) -> 2016-02-03 | B3: A-12345 | C3: 33.00 | D3: Trošak 1 | E3: Zalihe
A4: =DATE(YEAR(TODAY()),2,4) -> 2016-02-04 | B4: A-12346 | C4: 238.00 | D4: Trošak 2
C5: 342.00 | D5: Trošak 1
C6: 110.00 | D6: Trošak 3
C7: 84.00 | D7: Trošak 4
C8: 54.00 | D8: Trošak 5
A9: Zbroj | C9: =SUBTOTAL(109,TroVelj[Iznos]) -> 861.00

Sheet ožu
A1: TROŠKOVI U OŽUJKU | D1: Sažetak | E1: Savjeti
A2: Datum | B2: Broj narudžbenice | C2: Iznos | D2: Kategorija | E2: Opis
A3: =DATE(YEAR(TODAY()),3,5) -> 2016-03-05 | B3: A-12345 | C3: 33.00 | D3: Trošak 1 | E3: Zalihe
A4: =DATE(YEAR(TODAY()),3,6) -> 2016-03-06 | B4: A-12346 | C4: 238.00 | D4: Trošak 2
C5: 55.00 | D5: Trošak 5
C6: 110.00 | D6: Trošak 3
C7: 84.00 | D7: Trošak 4
C8: 54.00 | D8: Trošak 5
A9: Zbroj | C9: =SUBTOTAL(109,TroOžu[Iznos]) -> 574.00

Sheet tra
A1: TROŠKOVI U TRAVNJU | D1: Sažetak | E1: Savjeti
A2: Datum | B2: Broj narudžbenice | C2: Iznos | D2: Kategorija | E2: Opis
A3: =DATE(YEAR(TODAY()),4,4) -> 2016-04-04 | B3: A-12345 | C3: 45.00 | D3: Trošak 1 | E3: Zalihe
A4: =DATE(YEAR(TODAY()),4,8) -> 2016-04-08 | B4: A-12346 | C4: 123.00 | D4: Trošak 2
C5: 342.00 | D5: Trošak 4
C6: 125.00 | D6: Trošak 3
C7: 84.00 | D7: Trošak 4
C8: 98.00 | D8: Trošak 5
A9: Zbroj | C9: =SUBTOTAL(109,TroTra[Iznos]) -> 817.00

Sheet svi
A1: TROŠKOVI U SVIBNJU | D1: Sažetak | E1: Savjeti
A2: Datum | B2: Broj narudžbenice | C2: Iznos | D2: Kategorija | E2: Opis
A3: =DATE(YEAR(TODAY()),5,3) -> 2016-05-03 | B3: A-12345 | C3: 33.00 | D3: Trošak 1 | E3: Zalihe
A4: =DATE(YEAR(TODAY()),5,8) -> 2016-05-08 | B4: A-12346 | C4: 111.00 | D4: Trošak 2
C5: 342.00 | D5: Trošak 1
C6: 333.00 | D6: Trošak 3
C7: 125.00 | D7: Trošak 4
C8: 33.00 | D8: Trošak 5
A9: Zbroj | C9: =SUBTOTAL(109,TroSvi[Iznos]) -> 977.00

Sheet lip
A1: TROŠKOVI U LIPNJU | D1: Sažetak | E1: Savjeti
A2: Datum | B2: Broj narudžbenice | C2: Iznos | D2: Kategorija | E2: Opis
A3: =DATE(YEAR(TODAY()),6,7) -> 2016-06-07 | B3: A-12345 | C3: 201.00 | D3: Trošak 1 | E3: Zalihe
A4: =DATE(YEAR(TODAY()),6,8) -> 2016-06-08 | B4: A-12346 | C4: 98.00 | D4: Trošak 2
C5: 342.00 | D5: Trošak 5
C6: 122.00 | D6: Trošak 3
C7: 187.00 | D7: Trošak 4
C8: 99.00 | D8: Trošak 5
A9: Zbroj | C9: =SUBTOTAL(109,TroLip[Iznos]) -> 1,049.00

Sheet srp
A1: TROŠKOVI U SRPNJU | D1: Sažetak | E1: Savjeti
A2: Datum | B2: Broj narudžbenice | C2: Iznos | D2: Kategorija | E2: Opis
A3: =DATE(YEAR(TODAY()),7,9) -> 2016-07-09 | B3: A-12345 | D3: Trošak 1 | E3: Zalihe
A4: =DATE(YEAR(TODAY()),7,14) -> 2016-07-14 | B4: A-12346 | D4: Trošak 2
D5: Trošak 2
D6: Trošak 3
D7: Trošak 4
D8: Trošak 5
A9: Zbroj | C9: =SUBTOTAL(109,TroSrp[Iznos]) -> 0.00

Sheet kol
A1: TROŠKOVI U KOLOVOZU | D1: Sažetak | E1: Savjeti
A2: Datum | B2: Broj narudžbenice | C2: Iznos | D2: Kategorija | E2: Opis
A3: =DATE(YEAR(TODAY()),8,8) -> 2016-08-08 | B3: A-12345 | D3: Trošak 1 | E3: Zalihe
A4: =DATE(YEAR(TODAY()),8,9) -> 2016-08-09 | B4: A-12346 | D4: Trošak 2
D5: Trošak 2
D6: Trošak 3
D7: Trošak 4
D8: Trošak 5
A9: Zbroj | C9: =SUBTOTAL(109,TroKol[Iznos]) -> 0.00

Sheet ruj
A1: TROŠKOVI U RUJNU | D1: Sažetak | E1: Savjeti
A2: Datum | B2: Broj narudžbenice | C2: Iznos | D2: Kategorija | E2: Opis
A3: =DATE(YEAR(TODAY()),9,9) -> 2016-09-09 | B3: A-12345 | D3: Trošak 1 | E3: Zalihe
A4: =DATE(YEAR(TODAY()),9,15) -> 2016-09-15 | B4: A-12346 | D4: Trošak 2
D5: Trošak 2
D6: Trošak 3
D7: Trošak 4
D8: Trošak 5
A9: Zbroj | C9: =SUBTOTAL(109,TroRuj[Iznos]) -> 0.00

Sheet lis
A1: TROŠKOVI U LISTOPADU | D1: Sažetak | E1: Savjeti
A2: Datum | B2: Broj narudžbenice | C2: Iznos | D2: Kategorija | E2: Opis
A3: =DATE(YEAR(TODAY()),10,10) -> 2016-10-10 | B3: A-12345 | D3: Trošak 1 | E3: Zalihe
A4: =DATE(YEAR(TODAY()),10,21) -> 2016-10-21 | B4: A-12346 | D4: Trošak 2
D5: Trošak 2
D6: Trošak 3
D7: Trošak 4
D8: Trošak 5
A9: Zbroj | C9: =SUBTOTAL(109,TroLis[Iznos]) -> 0.00

Sheet stu
A1: TROŠKOVI U STUDENOM | D1: Sažetak | E1: Savjeti
A2: Datum | B2: Broj narudžbenice | C2: Iznos | D2: Kategorija | E2: Opis
A3: =DATE(YEAR(TODAY()),11,14) -> 2016-11-14 | B3: A-12345 | D3: Trošak 1 | E3: Zalihe
A4: =DATE(YEAR(TODAY()),11,21) -> 2016-11-21 | B4: A-12346 | D4: Trošak 2
D5: Trošak 2
D6: Trošak 3
D7: Trošak 4
D8: Trošak 5
A9: Zbroj | C9: =SUBTOTAL(109,TroStu[Iznos]) -> 0.00

Sheet pro
A1: TROŠKOVI U PROSINCU | D1: Sažetak | E1: Savjeti
A2: Datum | B2: Broj narudžbenice | C2: Iznos | D2: Kategorija | E2: Opis
A3: =DATE(YEAR(TODAY()),12,2) -> 2016-12-02 | B3: A-12345 | C3: 201.00 | D3: Trošak 1 | E3: Zalihe
A4: =DATE(YEAR(TODAY()),12,24) -> 2016-12-24 | B4: A-12346 | C4: 98.00 | D4: Trošak 2
C5: 342.00 | D5: Trošak 2
C6: 122.00 | D6: Trošak 3
C7: 187.00 | D7: Trošak 4
C8: 99.00 | D8: Trošak 5
A9: Zbroj | C9: =SUBTOTAL(109,TroPro[Iznos]) -> 1,049.00
